fUSD/lending_fUSD_20240920
["ID","MTS","AMOUNT","RATE_DAILY","PERIOD"]
[338635259,1726829164198,8364.819,0.00012646,2]
[338635260,1726829164431,500.0,0.00022999,120]
[338635261,1726829164695,500.0,0.00022999,120]
[338635262,1726829164982,500.0,0.00022999,120]
[338635263,1726829165256,500.0,0.00022999,120]
[338635264,1726829165336,648.73431845,0.00022999,120]
[338635265,1726829165388,500.0,0.00022999,120]
[338635266,1726829165552,500.0,0.00022999,120]
[338635267,1726829166158,500.0,0.00022999,120]
[338635268,1726829166427,500.0,0.00022999,120]
[338635269,1726829166892,500.0,0.00022999,120]
[338635270,1726829166959,500.0,0.00022999,120]
[338635271,1726829167387,500.0,0.00022999,120]
[338635272,1726829167679,500.0,0.00022999,120]
[338635273,1726829168376,500.0,0.00022999,120]
[338635274,1726829168642,500.0,0.00022999,120]
[338635275,1726829168909,500.0,0.00022999,120]
[338635276,1726829169173,468.29,0.00022999,120]
[338635277,1726829169990,500.0,0.00022999,120]
[338635278,1726829170251,500.0,0.00022999,120]
[338635279,1726829170558,254.8,0.00022999,120]
[338635280,1726829171066,2000.0,0.00011899,2]
[338635281,1726829172229,500.0,0.00022999,120]
[338635282,1726829172717,500.0,0.00022999,120]
[338635283,1726829173874,624.83,0.00022999,120]
[338635284,1726829174108,2127.37,0.00011994,2]
[338635285,1726829174195,500.0,0.00022999,120]
[338635286,1726829174756,1682.52,0.00011899,2]
[338635287,1726829176655,500.0,0.00022999,120]
[338635288,1726829177592,500.0,0.00022999,120]
[338635289,1726829180091,500.0,0.00022999,120]
[338635290,1726829180970,500.0,0.00022999,120]
[338635291,1726829182645,500.0,0.00022999,120]
[338635292,1726829183864,486.89043446,0.00022999,120]
[338635293,1726829184650,154.0,0.00011899,2]
[338635294,1726829184968,500.0,0.00022999,120]
[338635295,1726829187384,800.0,0.00010068,2]
[338635296,1726829187565,632.11,0.00022999,120]
[338635297,1726829187885,500.0,0.00022999,120]
[338635298,1726829188080,500.0,0.00022999,120]
[338635299,1726829188193,239.46,0.00022999,120]
[338635300,1726829188969,800.0,0.00011438,2]
[338635301,1726829190060,500.0,0.00022999,120]
[338635302,1726829190450,598.83,0.00022999,120]
[338635303,1726829191646,500.0,0.00022999,120]
[338635304,1726829191970,162.29,0.00022999,120]
[338635305,1726829193105,200.0,0.00011899,2]
[338635306,1726829203918,500.0,0.00022999,120]
[338635307,1726829205914,500.0,0.00022999,120]
[338635308,1726829207734,500.0,0.00022999,120]
[338635309,1726829208003,545.83,0.00022999,120]
[338635310,1726829208148,500.0,0.00022999,120]
[338635311,1726829208742,500.0,0.00022999,120]
[338635312,1726829211304,500.0,0.00022999,120]
[338635313,1726829213304,500.0,0.00022999,120]
[338635314,1726829213547,271.69,0.00022999,120]
[338635315,1726829214413,1500.0,0.00011899,2]
[338635316,1726829217803,500.0,0.00022999,120]
[338635317,1726829236171,4696.37337281,0.00012655,2]
[338635318,1726829241133,4696.37337279,0.00012656,2]
[338635319,1726829242335,500.0,0.00022999,120]
[338635320,1726829246341,4696.37337279,0.00012656,2]
[338635321,1726829247038,2241.11,0.00011862,2]
[338635322,1726829248510,500.0,0.00022999,120]
[338635323,1726829264948,500.0,0.00022999,120]
[338635324,1726829265205,487.82,0.00022999,120]
[338635325,1726829273389,789.71,0.00011862,2]
[338635326,1726829276242,500.0,0.00022999,120]
[338635327,1726829276550,500.0,0.00022999,120]
[338635328,1726829276857,265.95,0.00022999,120]
[338635329,1726829284549,786.8,0.00011899,2]
[338635330,1726829291954,500.0,0.00022999,120]
[338635331,1726829292207,500.0,0.00022999,120]
[338635332,1726829292460,339.45,0.00022999,120]
[338635333,1726829293375,700.0,0.00010068,2]
[338635334,1726829295672,500.0,0.00022999,120]
[338635335,1726829296930,695.86,0.00011899,2]
[338635336,1726829297814,535.87,0.00022999,120]
[338635338,1726829303509,2533.94,0.00011859,2]
[338635339,1726829310721,500.0,0.00022999,120]
[338635340,1726829311296,551.62,0.00022999,120]
[338635341,1726829335564,572.95,0.00022999,120]
[338635342,1726829335765,3395.08,0.00011859,2]
[338635343,1726829335998,3395.08,0.00011862,2]
[338635344,1726829336212,3395.08,0.00011865,2]
[338635345,1726829336425,3395.08,0.00011868,2]
[338635346,1726829336670,3395.08,0.00011872,2]
[338635347,1726829336891,3395.08,0.00011875,2]
[338635348,1726829337321,3395.08,0.00011878,2]
[338635349,1726829337557,3395.08,0.00011881,2]
[338635350,1726829337693,500.0,0.00022999,120]
[338635351,1726829338136,3395.08,0.00011884,2]
[338635352,1726829338168,3395.08,0.00011887,2]
[338635353,1726829338224,3395.08,0.0001189,2]
[338635354,1726829338463,3395.08,0.00011893,2]
[338635355,1726829338907,3395.08,0.00011897,2]
[338635356,1726829339138,3395.08,0.000119,2]
[338635357,1726829339360,3395.08,0.00011903,2]
[338635358,1726829339607,3395.08,0.00011906,2]
[338635359,1726829339823,3395.08,0.00011909,2]
[338635360,1726829339922,500.0,0.00022999,120]
[338635361,1726829340070,3395.08,0.00011912,2]
[338635362,1726829340458,3395.08,0.00011915,2]
[338635363,1726829340661,3395.08,0.00011918,2]
[338635364,1726829344364,500.0,0.00022999,120]
[338635365,1726829344670,168.18,0.00022999,120]
[338635366,1726829346594,1050.0,0.00011,2]
[338635367,1726829346956,500.0,0.00022999,120]
[338635368,1726829347238,518.26,0.00022999,120]
[338635369,1726829349706,500.0,0.00022999,120]
[338635370,1726829350009,206.71,0.00022999,120]
[338635371,1726829351229,500.0,0.00022999,120]
[338635372,1726829351554,222.03,0.00022999,120]
[338635373,1726829367534,500.0,0.00022999,120]
[338635374,1726829369626,500.0,0.00022999,120]
[338635375,1726829371134,500.0,0.00022999,120]
[338635376,1726829376251,500.0,0.00022999,120]
[338635377,1726829376507,327.03,0.00022999,120]
[338635378,1726829378288,200.0,0.00011857,2]
[338635379,1726829378755,500.0,0.00022999,120]
[338635380,1726829379028,452.27,0.00022999,120]
[338635381,1726829381067,500.0,0.00022999,120]
[338635382,1726829381353,500.0,0.00022999,120]
[338635383,1726829381626,589.21,0.00022999,120]
[338635384,1726829383853,500.0,0.00022999,120]
[338635385,1726829384118,500.0,0.00022999,120]
[338635386,1726829384408,500.0,0.00022999,120]
[338635387,1726829384678,210.4,0.00022999,120]
[338635388,1726829387819,167.09,0.00012445,2]
[338635389,1726829388421,500.0,0.00022999,120]
[338635390,1726829388699,614.2,0.00022999,120]
[338635391,1726829388830,547.8910918,0.00022999,120]
[338635392,1726829390643,200.0,0.00011858,2]
[338635393,1726829390868,509.44,0.00022999,120]
[338635394,1726829391003,500.0,0.00022999,120]
[338635395,1726829396390,545.33,0.00022999,120]
[338635396,1726829398280,600.0,0.00010068,2]
[338635397,1726829398509,500.0,0.00022999,120]
[338635398,1726829398703,510.1,0.00022999,120]
[338635399,1726829398765,379.53,0.00022999,120]
[338635400,1726829403180,289.21636165,0.00012445,2]
[338635401,1726829403677,210.3,0.00012736,2]
[338635402,1726829404053,1315.6445646,0.00012,2]
[338635403,1726829407078,500.0,0.00022999,120]
[338635404,1726829407575,213.37,0.00022999,120]
[338635405,1726829408937,500.0,0.00022999,120]
[338635406,1726829411295,500.0,0.00022999,120]
[338635407,1726829413664,501.2690578,0.00022999,120]
[338635408,1726829416797,641.45,0.0001186,2]
[338635409,1726829417964,250.0,0.0001186,2]
[338635410,1726829421467,500.0,0.00022999,120]
[338635411,1726829427672,500.0,0.00022999,120]
[338635416,1726829431760,-150.0,0.00012746,2]
[338635417,1726829431770,-150.0,0.00012755,2]
[338635418,1726829431779,-268.440485,0.00012756,2]
[338635419,1726829431788,-26.55778177,0.00012758,2]
[338635420,1726829431800,-123.44221823,0.00012758,2]
[338635421,1726829431810,-150.0,0.00012761,2]
[338635422,1726829431819,-85.49278177,0.00012763,2]
[338635423,1726829431831,-64.50721823,0.00012763,2]
[338635424,1726829431842,-150.0,0.00012768,2]
[338635425,1726829431851,-130.99278177,0.0001278,2]
[338635426,1726829431862,-19.00721823,0.0001278,2]
[338635427,1726829431872,-150.0,0.00012784,2]
[338635428,1726829431882,-150.0,0.00012786,2]
[338635429,1726829431891,-299.99,0.00012786,2]
[338635430,1726829431902,-215.81474963,0.00012786,2]
[338635431,1726829431914,-9784.17525037,0.00012786,2]
[338635432,1726829431924,-499.99,0.00012786,2]
[338635433,1726829431934,-2537.17,0.00012786,2]
[338635434,1726829431943,-150.0,0.00012791,2]
[338635435,1726829431953,-7697.5419,0.00012796,2]
[338635436,1726829431962,-14904.7035,0.000128,2]
[338635437,1726829431971,-150.0,0.00012801,2]
[338635438,1726829431981,-150.0,0.00012804,2]
[338635439,1726829431991,-150.0,0.00012805,2]
[338635440,1726829432000,-150.0,0.00012807,2]
[338635441,1726829432010,-500.0,0.00012808,2]
[338635442,1726829432019,-600.0,0.00012808,2]
[338635443,1726829432029,-150.0,0.00012808,2]
[338635445,1726829432038,-800.0,0.00012808,2]
[338635447,1726829432047,-150.0,0.00012842,2]
[338635448,1726829432057,-150.0,0.00012844,2]
[338635450,1726829432066,-150.0,0.00012847,2]
[338635452,1726829432076,-150.0,0.00012855,2]
[338635454,1726829432085,-421.90097643,0.00012863,2]
[338635456,1726829432105,-150.0,0.00012864,2]
[338635458,1726829432115,-150.0,0.0001287,2]
[338635460,1726829432125,-150.0,0.0001287,2]
[338635461,1726829432135,-150.0,0.00012874,2]
[338635463,1726829432145,-500.0,0.00012895,2]
[338635465,1726829432154,-200.0,0.00012895,2]
[338635467,1726829432165,-2500.0,0.00012896,2]
[338635469,1726829432174,-500.0,0.00012896,2]
[338635471,1726829432183,-500.0,0.00012896,2]
[338635472,1726829432193,-200.0,0.00012896,2]
[338635474,1726829432203,-270.963,0.00012898,2]
[338635476,1726829432212,-175.745,0.00012898,2]
[338635478,1726829432222,-3827.73479178,0.00012898,2]
[338635480,1726829432232,-3827.73479178,0.00012898,2]
[338635482,1726829432242,-3827.73479178,0.00012898,2]
[338635484,1726829432251,-3827.73479178,0.00012899,2]
[338635485,1726829432260,-3827.73479178,0.00012899,2]
[338635487,1726829432270,-3827.73479178,0.00012899,2]
[338635489,1726829432281,-3827.73479178,0.00012899,2]
[338635491,1726829432292,-3827.73479178,0.000129,2]
[338635493,1726829432302,-14353.5755,0.000129,2]
[338635494,1726829432315,-37492.35653897,0.000129,2]
[338635496,1726829432331,-566.54007379,0.000129,2]
[338635498,1726829432344,-335.92939992,0.000129,2]
[338635499,1726829432356,-348.89010204,0.000129,2]
[338635501,1726829432367,-1681.97278528,0.000129,2]
[338635503,1726829432378,-115.43270149,0.000129,2]
[338635505,1726829432390,-168.52369851,0.000129,2]
[338635507,1726829432400,-1720.762,0.000129,2]
[338635508,1726829432410,-3830.21901937,0.000129,2]
[338635511,1726829432432,-2438.81374445,0.000129,2]
[338635513,1726829432448,-6878.74176839,0.000129,2]
[338635515,1726829432459,-311.93216779,0.000129,2]
[338635517,1726829432469,-22.57530483,0.000129,2]
[338635528,1726829433008,500.0,0.00022999,120]
[338635529,1726829433293,500.0,0.00022999,120]
[338635530,1726829433588,645.71,0.00022999,120]
[338635535,1726829437803,-876.29629517,0.000129,2]
[338635536,1726829437813,-805.74647913,0.000129,2]
[338635537,1726829438068,-636.84010072,0.000129,2]
[338635538,1726829438080,-298.25,0.000129,2]
[338635544,1726829438429,500.0,0.00022999,120]
[338635570,1726829438710,500.0,0.00022999,120]
[338635571,1726829439202,500.0,0.00022999,120]
[338635572,1726829439483,500.0,0.00022999,120]
[338635579,1726829439983,500.0,0.00022999,120]
[338635580,1726829439998,-2884.5,0.000129,2]
[338635581,1726829440010,-318.048384,0.000129,2]
[338635582,1726829440069,175.36,0.00022999,120]
[338635583,1726829440081,-223.31863615,0.000129,2]
[338635584,1726829440092,-1000.0,0.000129,2]
[338635585,1726829440103,-2044.4469,0.000129,2]
[338635587,1726829440113,-3827.73479178,0.000129,2]
[338635589,1726829440122,-209.0038,0.000129,2]
[338635591,1726829440132,-22705.5772,0.000129,2]
[338635593,1726829440141,-8668.4252,0.000129,2]
[338635595,1726829440151,-2647.5565,0.000129,2]
[338635597,1726829440161,-3827.73479178,0.000129,2]
[338635600,1726829440172,-317.25784118,0.000129,2]
[338635602,1726829440181,-176.40967186,0.000129,2]
[338635604,1726829440191,-2027.92425738,0.000129,2]
[338635606,1726829440201,-150.0,0.00012904,2]
[338635608,1726829440211,-408.9014,0.00012904,2]
[338635610,1726829440220,-150.0,0.00012908,2]
[338635612,1726829440230,-268.440485,0.00012911,2]
[338635614,1726829440241,-150.0,0.00012913,2]
[338635616,1726829440251,-150.0,0.00012917,2]
[338635618,1726829440261,-262.75255236,0.00012933,2]
[338635620,1726829440271,-150.0,0.00012949,2]
[338635622,1726829440280,-150.0,0.00012949,2]
[338635624,1726829440290,-150.0,0.0001295,2]
[338635626,1726829440300,-150.0,0.00012952,2]
[338635628,1726829440313,-150.0,0.00012953,2]
[338635630,1726829440323,-150.0,0.0001296,2]
[338635633,1726829440333,-150.0,0.00012966,2]
[338635634,1726829440342,-150.0,0.0001297,2]
[338635636,1726829440352,-1500.0,0.00012984,2]
[338635639,1726829440362,-150.00000133,0.00012986,2]
[338635640,1726829440371,-150.00000078,0.00012986,2]
[338635643,1726829440380,-150.0,0.00012986,2]
[338635645,1726829440391,-241.6520348,0.00012986,2]
[338635647,1726829440401,-150.0,0.00012986,2]
[338635649,1726829440410,-164.67482092,0.0001299,2]
[338635651,1726829440420,-164.67482092,0.0001299,2]
[338635653,1726829440431,-152.38,0.0001299,2]
[338635655,1726829440440,-152.38,0.0001299,2]
[338635657,1726829440451,-150.0,0.00012991,2]
[338635659,1726829440461,-150.0,0.00012995,2]
[338635661,1726829440471,-750.1030846,0.00012996,2]
[338635663,1726829440482,-5850.1527434,0.00012996,2]
[338635665,1726829440492,-5182.672303,0.00012996,2]
[338635667,1726829440501,-150.0,0.00012998,2]
[338635669,1726829440512,-605.0,0.00013,2]
[338635671,1726829440522,-47958.49053467,0.00013,2]
[338635693,1726829441641,193.45,0.00011997,2]
[338635698,1726829442715,500.0,0.00022999,120]
[338635703,1726829442891,-680.3546727,0.00013,2]
[338635704,1726829442903,-764.825,0.00013,2]
[338635705,1726829442917,-2320.0,0.00013,2]
[338635706,1726829442930,-392.29490377,0.00013,2]
[338635707,1726829442943,-785.32255936,0.00013,2]
[338635708,1726829442955,-2396.5336603,0.00013,2]
[338635709,1726829442966,-12386.30117644,0.00013,2]
[338635710,1726829442981,-1806.49803386,0.00013,2]
[338635711,1726829443034,564.25,0.00022999,120]
[338635712,1726829443047,-8140.2985015,0.00013,2]
[338635713,1726829443058,-1490.79089986,0.00013,2]
[338635714,1726829443070,-772.82854254,0.00013,2]
[338635715,1726829443081,-6655.27794624,0.00013,2]
[338635716,1726829443092,-92425.02955496,0.00013,2]
[338635717,1726829443103,-389728.19745831,0.00013,2]
[338635718,1726829443115,-660995.24908312,0.00013,2]
[338635719,1726829443128,-21302.95897656,0.00013,2]
[338635720,1726829443139,-1326.30959715,0.00013,2]
[338635721,1726829443150,-438.829329,0.00013,2]
[338635722,1726829443166,-12611.58875453,0.00013,2]
[338635723,1726829443176,-700.1734372,0.00013,2]
[338635724,1726829443188,-344.11863334,0.00013,2]
[338635725,1726829443199,-5965.0,0.00013,2]
[338635726,1726829443211,-2500.0,0.00013,2]
[338635727,1726829443223,-464.504,0.00013,2]
[338635728,1726829443234,-922692.61404056,0.00013,2]
[338635729,1726829443244,-12385.18026716,0.00013,2]
[338635730,1726829443260,-294.14994472,0.00013,2]
[338635731,1726829443271,-1041.4084361,0.00013,2]
[338635732,1726829443282,-261.4769987,0.00013,2]
[338635733,1726829443293,-21220.78577,0.00013,2]
[338635734,1726829443304,-34426.799998,0.00013,2]
[338635742,1726829445067,500.0,0.00022999,120]
[338635743,1726829445346,500.0,0.00022999,120]
[338635744,1726829445414,588.47,0.00022999,120]
[338635745,1726829445596,369.63,0.00022999,120]
[338635752,1726829445748,-419.49964303,0.00013,2]
[338635753,1726829445759,-470.61999998,0.00013,2]
[338635754,1726829445790,-3358.77699819,0.00013,2]
[338635755,1726829445801,-59505.0,0.00013,2]
[338635756,1726829445812,-281.818872,0.00013,2]
[338635757,1726829445824,-344.831931,0.00013,2]
[338635758,1726829445836,-300.0,0.00013,2]
[338635759,1726829445847,-5967.65752401,0.00013,2]
[338635760,1726829445860,-4336.80998317,0.00013,2]
[338635761,1726829445871,-581.65852701,0.00013,2]
[338635762,1726829445883,-3871.59662795,0.00013,2]
[338635763,1726829445940,-4796.13217311,0.00013,2]
[338635764,1726829445952,-2570.41893268,0.00013,2]
[338635765,1726829445963,-1000.18527722,0.00013,2]
[338635766,1726829445975,-628.35870596,0.00013,2]
[338635767,1726829445986,-9557.85,0.00013,2]
[338635768,1726829445997,-554.29887854,0.00013,2]
[338635769,1726829446008,-389.63124367,0.00013,2]
[338635770,1726829446019,-291.09122005,0.00013,2]
[338635771,1726829446058,-264.208,0.00013,2]
[338635772,1726829446070,-37230.69573934,0.00013,2]
[338635774,1726829448733,257.94,0.00012569,2]
[338635775,1726829452263,500.0,0.00022999,120]
[338635776,1726829453726,500.0,0.00022999,120]
[338635777,1726829453978,500.0,0.00022999,120]
[338635778,1726829454250,168.86,0.00022999,120]
[338635779,1726829455453,500.0,0.00022999,120]
[338635780,1726829456736,563.93,0.00022999,120]
[338635781,1726829458437,191.77,0.00010959,2]
[338635782,1726829460468,500.0,0.00022999,120]
[338635783,1726829460995,500.0,0.00022999,120]
[338635784,1726829464918,500.0,0.00022999,120]
[338635785,1726829465249,165.1,0.00022999,120]
[338635786,1726829468010,500.0,0.00022999,120]
[338635787,1726829468300,219.08,0.00022999,120]
[338635788,1726829468415,800.0,0.00010068,2]
[338635789,1726829470432,800.0,0.00011438,2]
[338635790,1726829470531,500.0,0.00022999,120]
[338635791,1726829470845,500.0,0.00022999,120]
[338635792,1726829471097,216.2,0.00022999,120]
[338635793,1726829472261,738.96,0.00010512,2]
[338635794,1726829476428,500.0,0.00022999,120]
[338635795,1726829476761,979.52,0.00012406,2]
[338635796,1726829476808,500.0,0.00022999,120]
[338635797,1726829477065,166.51,0.00022999,120]
[338635798,1726829482031,500.0,0.00022999,120]
[338635799,1726829482640,258.04,0.00022999,120]
[338635800,1726829484609,500.0,0.00022999,120]
[338635801,1726829488590,555.02950164,0.00022999,120]
[338635802,1726829488860,501.07092458,0.00011164,2]
[338635803,1726829489195,500.0,0.00022999,120]
[338635804,1726829490842,500.0,0.00022999,120]
[338635805,1726829491190,500.0,0.00022999,120]
[338635806,1726829491969,273.81,0.00022999,120]
[338635807,1726829496954,444.31,0.00012394,2]
[338635808,1726829500926,500.0,0.00022999,120]
[338635809,1726829501291,413.11,0.00022999,120]
[338635810,1726829502418,500.0,0.00022999,120]
[338635811,1726829507564,500.0,0.00022999,120]
[338635812,1726829507832,485.93,0.00022999,120]
[338635813,1726829509897,500.0,0.00011164,2]
[338635814,1726829511610,500.0,0.00022999,120]
[338635815,1726829511884,181.24,0.00022999,120]
[338635816,1726829514375,500.0,0.00022999,120]
[338635817,1726829515464,3987.89,0.00012392,2]
[338635818,1726829520537,1054.97586581,0.00023,120]
[338635819,1726829523342,500.0,0.00022999,120]
[338635820,1726829523499,500.0,0.00022999,120]
[338635821,1726829523788,282.27,0.00022999,120]
[338635822,1726829531599,5206.48,0.0001237,2]
[338635823,1726829533618,500.0,0.00022999,120]
[338635824,1726829533671,500.0,0.00022999,120]
[338635825,1726829535776,532.01861924,0.00022999,120]
[338635826,1726829539684,500.0,0.00022999,120]
[338635827,1726829541728,500.0,0.00022999,120]
[338635828,1726829547323,539.98,0.00022999,120]
[338635829,1726829554608,500.0,0.00022999,120]
[338635830,1726829554985,500.0,0.00022999,120]
[338635831,1726829555234,500.0,0.00022999,120]
[338635832,1726829556125,500.0,0.00022999,120]
[338635833,1726829556376,467.64,0.00022999,120]
[338635834,1726829562839,500.0,0.00022999,120]
[338635835,1726829564863,500.0,0.00022999,120]
[338635836,1726829567060,23900.0,0.00012344,2]
[338635837,1726829570752,500.0,0.00022999,120]
[338635838,1726829571027,310.46,0.00022999,120]
[338635839,1726829571171,624.76,0.00022999,120]
[338635840,1726829573785,500.0,0.00022999,120]
[338635841,1726829574079,499.39063369,0.00022999,120]
[338635842,1726829576312,500.0,0.00022999,120]
[338635843,1726829576588,277.66,0.00022999,120]
[338635844,1726829578959,501.2587768,0.00022999,120]
[338635845,1726829579028,500.0,0.00022999,120]
[338635846,1726829587705,500.0,0.00022999,120]
[338635847,1726829588831,500.0,0.00022999,120]
[338635848,1726829592127,519.6,0.00022999,120]
[338635849,1726829594088,150.0,0.00012334,2]
[338635850,1726829594740,501.13929951,0.00022999,120]
[338635851,1726829596196,3124.64,0.00012334,2]
[338635852,1726829600482,500.0,0.00022999,120]
[338635853,1726829600816,500.92071183,0.00022999,120]
[338635854,1726829601677,500.0,0.00022999,120]
[338635855,1726829608548,500.0,0.00022999,120]
[338635856,1726829610646,500.0,0.00022999,120]
[338635857,1726829610919,279.45,0.00022999,120]
[338635858,1726829612973,500.0,0.00022999,120]
[338635859,1726829613258,338.37,0.00022999,120]
[338635860,1726829615387,500.0,0.00022999,120]
[338635861,1726829617395,503.3,0.00022999,120]
[338635862,1726829620719,500.0,0.00022999,120]
[338635863,1726829620997,376.8,0.00022999,120]
[338635864,1726829622421,500.0,0.00011164,2]
[338635865,1726829623768,500.0,0.00022999,120]
[338635866,1726829628775,171.91718399,0.00012699,2]
[338635867,1726829629280,553.44740958,0.000127,2]
[338635868,1726829634284,553.44740951,0.00012722,2]
[338635869,1726829634793,500.0,0.00022999,120]
[338635870,1726829647891,500.0,0.00022999,120]
[338635871,1726829648140,586.04,0.00022999,120]
[338635872,1726829657819,500.0,0.00022999,120]
[338635873,1726829661582,605.0,0.00022999,120]
[338635874,1726829684741,500.0,0.00022999,120]
[338635875,1726829690363,500.0,0.00022999,120]
[338635876,1726829698508,519.9,0.00022999,120]
[338635877,1726829702133,500.0,0.00022999,120]
[338635878,1726829709439,500.0,0.00022999,120]
[338635879,1726829719519,500.0,0.00022999,120]
[338635880,1726829719611,250.0,0.00012038,2]
[338635881,1726829725043,500.0,0.00022999,120]
[338635882,1726829725237,500.0,0.00022999,120]
[338635883,1726829727584,500.0,0.00022999,120]
[338635884,1726829731120,500.0,0.00011164,2]
[338635885,1726829732218,500.0,0.00022999,120]
[338635886,1726829734159,154.0,0.00012038,2]
[338635887,1726829734610,500.0,0.00022999,120]
[338635888,1726829736457,500.0,0.00022999,120]
[338635889,1726829736605,500.0,0.00022999,120]
[338635890,1726829739800,156.13,0.00012038,2]
[338635891,1726829745648,500.0,0.00022999,120]
[338635892,1726829753258,500.0,0.00022999,120]
[338635893,1726829753507,228.26,0.00022999,120]
[338635894,1726829759370,500.0,0.00022999,120]
[338635895,1726829775508,500.0,0.00022999,120]
[338635896,1726829777384,2500.0,0.000127,2]
[338635897,1726829780552,500.0,0.00022999,120]
[338635898,1726829781060,350.58,0.00012014,2]
[338635899,1726829781407,620.0222,0.000127,2]
[338635900,1726829788167,250.0,0.00012014,2]
[338635901,1726829810929,500.0,0.00022999,120]
[338635902,1726829811230,500.0,0.00022999,120]
[338635903,1726829811677,159.79288032,0.00022999,120]
[338635904,1726829813640,3054.9624,0.000127,2]
[338635905,1726829824717,213.4085,0.000127,2]
[338635906,1726829837736,500.0,0.00011164,2]
[338635907,1726829842953,937.97,0.00012043,2]
[338635908,1726829885772,-553.44740951,0.00012744,2]
[338635909,1726829889219,50000.0,0.00022,60]
[338635910,1726829913746,-732.55259049,0.00012767,2]
[338635911,1726829939723,1199.91,0.00012023,2]
[338635912,1726829943649,500.0,0.00011164,2]
[338635913,1726829955278,840.0,0.00012044,2]
[338635914,1726829967733,2500.0,0.000127,2]
[338635915,1726829983548,200.0,0.00012044,2]
[338635916,1726829996094,421.90097643,0.0001267,2]
[338635917,1726829997670,174.04,0.00012646,2]
[338635918,1726830048703,500.0,0.00011164,2]
[338635919,1726830069937,250.0,0.00012092,2]
[338635920,1726830075250,174.1,0.00010959,2]
[338635921,1726830108395,1000.0,0.000127,2]
[338635922,1726830110133,387.41318672,0.000127,2]
[338635923,1726830115148,387.41318665,0.00012722,2]
[338635924,1726830131803,715.52,0.00010129,2]
[338635925,1726830132110,715.52,0.00012393,2]
[338635926,1726830148458,1657.27,0.00012742,2]
[338635927,1726830150420,500.0,0.00011164,2]
[338635928,1726830170036,2500.0,0.000127,2]
[338635929,1726830173357,23900.0,0.00012002,2]
[338635930,1726830205781,181.58,0.00012535,2]
[338635931,1726830237812,201.83967508,0.00012535,2]
[338635932,1726830251386,500.0,0.00011164,2]
[338635933,1726830274804,214.28,0.00012002,2]
[338635934,1726830279633,250.0,0.00011995,2]